Cogmind - Beta 11 X5 @@@ ROGUE MODE // 2021.06.08 @ 02:28:41 Player: Runia Result: Self-destructed Performance ------------- Evolutions (1) 500 Regions Visited (2) 400 Robots Destroyed (19) 95 Value Destroyed (439) 439 Prototype IDs (1) 20 Alien Tech Used (0) 0 Bonus (0) 0 TOTAL SCORE: 1454 Bonus ------- None Cogmind --------- Core Integrity 267/400 Matter 300/300 Energy 280/280 System Corruption 0% Temperature Cool (0) Movement Walking (200) Ox1 Location -9/Materials Parts ------- > --- POWER (1) -------- Heavy Ion Engine > --- PROPULSION (3) --- Aluminum Leg Aluminum Leg > --- UTILITY (3) ------ Improved Heat Sink Large Storage Unit > --- WEAPON (2) ------- Assault Rifle > --- INVENTORY (15) --- Heavy Ion Engine Light Treads Aluminum Leg Aluminum Leg Aluminum Leg Aluminum Leg Heat Sink Structural Scanner Small Laser Improved Assault Rifle Improved Assault Rifle Grenade Launcher Peak State ------------ > --- POWER ------------ Heavy Ion Engine > --- PROPULSION ------- Light Treads Aluminum Leg Aluminum Leg > --- UTILITY ---------- Improved Heat Sink Large Storage Unit Light Armor Plating > --- WEAPON ----------- Medium Laser Assault Rifle > --- INVENTORY -------- Heavy Ion Engine Light Treads Light Treads Light Treads Light Treads Aluminum Leg Aluminum Leg Aluminum Leg Heat Sink Structural Scanner Small Laser Improved Assault Rifle Improved Assault Rifle Grenade Launcher [Rating: 15] Favorites ----------- Power Ion Engine Engine Ion Engine Propulsion Aluminum Leg Treads Light Treads Leg Aluminum Leg Utility Structural Scanner Device Structural Scanner Storage Small Storage Unit Protection Light Armor Plating Weapon Medium Laser Energy Gun Medium Laser Ballistic Gun Assault Rifle Launcher Grenade Launcher Build | -11 -10 -9 ------- Run | Scr Mat Mat Slots Evolved 2 | . . 2 Power . | . . . Propulsion 1 | . . 1 Utility 1 | . . 1 Weapon . | . . . Parts Attached 13 | . 4 9 Power 1 | . . 1 Engine 1 | . . 1 Core . | . . . Reactor . | . . . Propulsion 3 | . . 3 Treads 1 | . . 1 Leg 2 | . . 2 Wheel . | . . . Hover . | . . . Flight . | . . . Utility 6 | . 1 5 Device 3 | . 1 2 Storage 1 | . . 1 Processor . | . . . Hackware . | . . . Protection 2 | . . 2 Artifact . | . . . Weapon 3 | . 3 . Energy Gun 1 | . 1 . Energy Cannon . | . . . Ballistic Gun 1 | . 1 . Ballistic Cannon . | . . . Launcher 1 | . 1 . Special Weapon . | . . . Impact Weapon . | . . . Slashing Weapon . | . . . Piercing Weapon . | . . . Special Melee Weapon . | . . . Unidentified Prototypes 1 | . . 1 Parts Lost 5 | . . 5 Power . | . . . Propulsion 2 | . . 2 Utility 2 | . . 2 Weapon 1 | . . 1 Highest Loss Streak 2 | . . 2 Average Slot Usage (%) 93 | . 97 90 Engine 12 | . 14 11 Treads 2 | . . 3 Leg 25 | . 28 23 Device 11 | . 11 11 Storage 12 | . 14 11 Protection 4 | . . 8 Energy Gun 12 | . 14 10 Ballistic Gun 11 | . 12 11 Naked Turns . | . . . Heaviest Build 36 | 14 16 36 Greatest Support 30 | 20 20 30 Greatest Overweight (x) 1 | . . 1 Average Overweight (x) . | . . . Largest Inventory Capacity 15 | 8 8 15 Average Capacity 11 | 8 8 14 Most Carried 15 | 5 8 15 Average Carried 8 | 5 6 10 Final Capacity 15 | 8 8 15 Final Carried 12 | 4 8 12 Class Distribution -------------------- 100% | Mutant Dominant Class ---------------- Mutant | -10/Materials Mutant | -9/Materials Resources | -11 -10 -9 ----------- Run | Scr Mat Mat Matter Collected 485 | 181 81 223 Remotely . | . . . Salvage Created 627 | . 143 484 Parts 42 | . 12 30 Haulers Intercepted 1 | . . 1 Recyclers Shooed . | . . . Parts Field Recycled . | . . . Retrieved Matter . | . . . Parts Self-Destructed . | . . . Prevented . | . . . Kills | -11 -10 -9 ------- Run | Scr Mat Mat Combat Hostiles Destroyed 17 | . 5 12 Guns 14 | . 2 12 AOE 3 | . 3 . Classes Destroyed 6 | . 3 3 Worker 1 | . 1 . Hauler 1 | . . 1 Swarmer 7 | . 3 4 Grunt 8 | . 2 6 Brawler 1 | . . 1 Sentry 1 | . . 1 Best Kill Streak 6 | . 4 6 Combat Bots Only 6 | . 3 6 Max Kills in Single Turn 3 | . 3 1 Gunslinging . | . . . Exploded 3 | . 3 . Melee . | . . . Uniques/NPCs Destroyed . | . . . Combat | -11 -10 -9 -------- Run | Scr Mat Mat Damage Taken 955 | . 158 797 Core 165 | . 32 133 Absorbed by Shields . | . . . Core Remaining (%) 93 | 100 87 . Volleys Fired 51 | . 6 45 Largest 2 | . 2 2 Hottest 70 | . 70 70 Shots Fired 97 | . 10 87 Gun 95 | . 8 87 Cannon . | . . . Launcher 2 | . 2 . Special . | . . . Kinetic 49 | . 4 45 Thermal 46 | . 4 42 Explosive 2 | . 2 . Electromagnetic . | . . . Robot Hit Streak 25 | . 3 25 Robot Miss Streak 2 | . 2 2 Penetration Max . | . . . Secondary Targets 1 | . . 1 Max Gunslinging Chain 1 | . . 1 Shots Hit Robots 73 | . 5 68 Core Hits 31 | . 8 23 Critical Kills . | . . . Critical Parts Destroyed . | . . . Critical Strikes . | . . . Melee Attacks . | . . . Impact . | . . . Slashing . | . . . Piercing . | . . . Sneak Attacks . | . . . Combat Hostiles . | . . . Follow-up Attacks . | . . . Damage Inflicted 1041 | . 200 841 Guns 906 | . 65 841 Cannons . | . . . Explosions 135 | . 135 . Melee . | . . . Ramming . | . . . Kinetic 492 | . 39 453 Thermal 414 | . 26 388 Explosive 135 | . 135 . Electromagnetic . | . . . Impact . | . . . Slashing . | . . . Piercing . | . . . Highest Corruption . | . . . Average Corruption . | . . . Corruption Purged . | . . . Overload Shots . | . . . Overflow Damage . | . . . Projectiles . | . . . Explosions . | . . . Melee . | . . . Knockbacks . | . . . Impact . | . . . Kinetic . | . . . Secondary . | . . . Self-Inflicted Damage 23 | . 23 . Shots 1 | . 1 . Rammed . | . . . Targets Rammed . | . . . Kicked . | . . . Crushed . | . . . Highest Temperature 346 | . 45 346 Average Temperature 172 | . 22 195 Received Heat Transfer 327 | . 30 297 Effects 2 | . . 2 Interference 2 | . . 2 Siege Activations . | . . . Robots Corrupted . | . . . Combat Hostiles . | . . . Parts Fried . | . . . Impact Corruptions . | . . . Robots Melted . | . . . Combat Hostiles . | . . . Parts Melted 3 | . . 3 Heat Transferred 1221 | . 74 1147 Parts Sabotaged . | . . . Parts Stolen . | . . . Parts Stripped . | . . . Power Chain Reactions . | . . . Missiles Intercepted . | . . . Alert | -11 -10 -9 ------- Run | Scr Mat Mat Peak Influence 387 | . 155 387 Initial 65 | . . 65 Average 152 | . 111 187 Maximum Alert Level 1 | . . 1 Low Security (%) 77 | 100 100 58 Level 1 22 | . . 41 Level 2 . | . . . Level 3 . | . . . Level 4 . | . . . Level 5 . | . . . High Security . | . . . Max Security . | . . . Squads Dispatched 1 | . . 1 Investigation . | . . . Extermination . | . . . Reinforcement 1 | . . 1 Assault . | . . . Garrison . | . . . Intercept . | . . . Construction Impeded . | . . . Haulers Reinforced . | . . . Cargo Convoy Interrupts . | . . . Stealth | -11 -10 -9 --------- Run | Scr Mat Mat Distress Signals 1 | . . 1 Communications Jammed . | . . . Distress Signals . | . . . Times Spotted 25 | . 10 15 Peak Tracking Total 8 | . 3 8 Tactical Retreats 2 | . 1 1 Traps | -11 -10 -9 ------- Run | Scr Mat Mat Traps Triggered . | . . . Indirectly . | . . . Trap Hack Attempts . | . . . Triggered . | . . . Disarmed . | . . . Reprogrammed . | . . . Reused . | . . . Traps Extracted . | . . . Installed . | . . . Triggered . | . . . Machines | -11 -10 -9 ---------- Run | Scr Mat Mat Machines Disabled . | . . . Max in Single Turn . | . . . Machines Sabotaged . | . . . Garrisons Compromised . | . . . Overloaded Fab Kills . | . . . Fab Network Shutdowns . | . . . Hacking | -11 -10 -9 --------- Run | Scr Mat Mat Machines Accessed 5 | . 3 2 Terminals 5 | . 3 2 Fabricators . | . . . Repair Stations . | . . . Recycling Units . | . . . Scanalyzers . | . . . Garrison Access . | . . . Total Hacks 16 | . 9 7 Successful 9 | . 5 4 Failed 6 | . 4 2 Catastrophic 1 | . . 1 Database Lockouts 1 | . . 1 Manual 4 | . . 4 Terminals 16 | . 9 7 Fabricators . | . . . Repair Stations . | . . . Recycling Units . | . . . Scanalyzers . | . . . Garrison Access . | . . . Terminal Hacks 9 | . 5 4 Part Schematic 1 | . . 1 Branch Access Points 1 | . . 1 Terminal Index 2 | . 1 1 Scanalyzer Index 1 | . . 1 Alert Level 1 | . 1 . Locate Traps 1 | . 1 . Zone Layout 2 | . 2 . Fabricator Hacks . | . . . Repair Station Hacks . | . . . Recycling Unit Hacks . | . . . Scanalyzer . | . . . Garrison Access Hacks . | . . . Unauthorized Hacks . | . . . Terminals . | . . . Fabricators . | . . . Repair Stations . | . . . Recycling Units . | . . . Scanalyzers . | . . . Garrison Access . | . . . Data Cores Recovered . | . . . Used . | . . . Hacking Detections 4 | . 3 1 Full Trace Events . | . . . Feedback Events . | . . . Feedback Blocked . | . . . Robot Schematics Acquired . | . . . Robots Built . | . . . Matter . | . . . Time . | . . . Total Robot Build Rating . | . . . Part Schematics Acquired 1 | . . 1 Parts Built . | . . . Matter . | . . . Time . | . . . Total Part Build Rating . | . . . Parts Repaired . | . . . Time . | . . . Parts Recycled . | . . . Recycled Matter . | . . . Retrieved Matter . | . . . Retrieved Components . | . . . Parts Scanalyzed . | . . . Part Schematics Acquired . | . . . Parts Damaged . | . . . Bothacking | -11 -10 -9 ------------ Run | Scr Mat Mat Used RIF Installer . | . . . Robots Hacked . | . . . Non-combat . | . . . Combat . | . . . Robot Hacks Applied . | . . . Relay Couplers Released . | . . . Robots Rewired . | . . . Allies Hacked . | . . . Hacks Repelled . | . . . Allies | -11 -10 -9 -------- Run | Scr Mat Mat Total Allies . | . . . Largest Group . | . . . Highest-Rated Group . | . . . Highest-Rated Ally . | . . . Total Orders . | . . . Ally Attacks . | . . . Total Damage . | . . . Kills . | . . . Allies Corrupted . | . . . Allies Melted . | . . . Intel | -11 -10 -9 ------- Run | Scr Mat Mat Robot Analysis Total . | . . . Derelict Logs Recovered . | . . . Drone Launches . | . . . Drone Recoveries . | . . . Exploration | -11 -10 -9 ------------- Run | Scr Mat Mat Turns Passed 740 | 1 344 395 Spaces Moved 376 | 1 257 118 Core . | . . . Treads . | . . . Legs 376 | 1 257 118 Wheels . | . . . Hover . | . . . Flight . | . . . Fastest Speed 120 | 120 120 120 Average Speed 139 | 120 120 183 Slowest Speed 200 | 120 120 200 Overloaded Moves . | . . . Propulsion Burnouts . | . . . Robots Hopped . | . . . Cave-ins Triggered . | . . . Exploration Rate (%) 20 | 2 46 13 Regions Visited 2 Branch Regions . Pre-discovered Areas . | . . . Known Exits Taken . | . . . Unknown Exits Taken 2 | 1 1 . Scrap Searched . | . . . Spaces Dug 1 | . 1 . Terrain Destroyed 11 | . 11 . Melee . | . . . Projectile . | . . . AOE 11 | . 11 . Terrain Rammed . | . . . Walls Destroyed . | . . . Machines Disabled . | . . . Actions | -11 -10 -9 --------- Run | Scr Mat Mat Total 496 | 2 282 212 Wait 27 | . 10 17 Move 374 | . 256 118 Hop . | . . . Pick Up 20 | . 5 15 Fast Attach 1 | . . 1 Attach 6 | . 1 5 Detach . | . . . Swap 6 | . 3 3 Drop 11 | 2 1 8 Fire 51 | . 6 45 Melee . | . . . Ram . | . . . Kick . | . . . Crush . | . . . Escape Stasis . | . . . Rewire . | . . . Trap . | . . . Miscellaneous . | . . . Route ------- -11/Scrapyard -10/Materials -9/Materials (discovered 2 exits: Min / Sto) History --------- Turn | Location | Event 2 | -11/Scrapyard | Discovered new exit (range 0) 2 | -11/Scrapyard | Entered Materials 310 | -10/Materials | Build established: Mutant 325 | -10/Materials | Discovered new exit (range 15) 346 | -10/Materials | Entered another Materials area 346 | -9/Materials | Evolved 2 slots: Propulsion x1, Utility x1 363 | -9/Materials | Identified exit to Mines 363 | -9/Materials | Identified exit to Storage 466 | -9/Materials | Central database locked down 741 | -9/Materials | Self-destructed Last Messages --------------- K-01 Serf collects debris. Flight Unit melted. S-10 Pest destroyed. Acquired 10 matter. K-01 Serf collects debris. S-10 Pest destroyed. Acquired 2 matter. K-01 Serf collects debris. Destroyed Flight Unit. R-06 Scavenger collects Flight Unit. S-10 Pest destroyed. Acquired 15 matter. R-06 Scavenger collects Lgt. Ion Engine. Aluminum Leg destroyed. R-06 Scavenger collects Flight Unit. K-01 Serf collects debris. Acquired 3 matter. Med. Laser destroyed. R-06 Scavenger destroyed. K-01 Serf collects debris. Map ----- +----------------------------------------------------+ | | | | | | | | | | | | | | | | | ?????############????????????????????????????????? | | ?????## ##????????????????????????????????? | | ####### ##????????????????????????????????? | | ####### !!! ##????????????????????????????????? | | # # !!! ##????????????????????????????????? | | # !!! ##????????????????????????????????? | | T + ##############????????????????????? | | # ##############????????????????????? | | # # ### ##????????????????????? | | ####### ### ##????????????????????? | | ############+##### ##????????????????????? | | ##???####### ##### # ????????????????????? | | ##????????##*##?## # ????????????????????? | | ##????????##!##?## !=!= # ????????????????????? | | ##????????##*##?## =[=* # ????????????????????? | | ##????????## ##?## %*k # ????????????????????? | | ##??######## ###########/### ###### ??? | | ???#########*#########=%%@%###+#############/##??? | | ???## """" # =*%%= ??? | | ???## """" # =%T= ????? | | ???## """" + ! [ g g T ??? | | ???## #####+##### # ##???????? | | ???## ## ####### o # ???????? | | ???## ##?? """ ####### """ [[ # ???????? | | ???##########? """ ##???## """ [[ # ???????? | | ???##########? """ ##???## """ [= # ???????? | | ????????????? ##???## u # ???????? | | ???????????## """ ##???## # ???????? | | ???????????## ""????????## """ !! # ???????? | | ???????????## ??????????## """ !! ##???????? | | ???????????## ?????????## ""?? !! ???????? | | ???????????######?????????## ????? ???????? | | ???????????######?????????## ?????? ? ??????? | | ??????????????????????????## ????????###???????? | | ??????????????????????????## ????????###???????? | | ???????????????????????????? ??????????????????? | | ???????????????????????????? ??????????????????? | | ?????????????????????????????????????????????????? | | ?????????????????????????????????????????????????? | | ?????????????????????????????????????????????????? | | ?????????????????????????????????????????????????? | | ?????????????????????????????????????????????????? | +----------------------------------------------------+ Best States ------------- Heat Dissipation 42 Energy Generation 14 Energy Capacity 280 Matter Stores 300 Matter Capacity 300 Sight Range 16 Terrain Scan Density 10 Armor Coverage 150 Evasion (%) 55 Item Schematics ----------------- Lrg. Storage Unit | -9/Materials | Hacked Robot Schematics ------------------ None Fabricated ------------ Nothing Alien Tech Used ----------------- None Achievements -------------- None Challenges ------------ None Game ------ Seed RagnarokNeutronManipulator Manual? 0 Play Time 00:08:38 Cumulative 194.0 hours Start 2021.06.08 @ 02:17:50 End 2021.06.08 @ 02:28:41 Sessions 1 Manual Loads 0 Difficulty Rogue Special Mode None Game No. 243 Rogue 243 Adventurer 0 Explorer 0 Win Type - Total 2 Types 2/0/0/0/0/0/0/0/0 Lore% 58 Gallery% 76 Achievement% 57 Wizard Run 0 Options --------- ASCII 0 Keyboard 0 Movement Mouse Keybinds 1 Fullscreen 2 Font 24/Smallcaps Map View 76x50 Tactical HUD 1 Map Filters NONE Filters NONE Steam 1 RUN: ac064836-0ffa-4b3a-a0b5-fca96f248bf8